fUSD/lending_fUSD_20250519
["ID","MTS","AMOUNT","RATE_DAILY","PERIOD"]
[361628353,1747650644505,-433.71,0.00013698,2]
[361628354,1747650644515,-400.0,0.00013698,2]
[361628355,1747650644524,-400.0,0.00013698,2]
[361628356,1747650644533,-420.0,0.00013698,2]
[361628357,1747650644543,-400.0,0.00013698,2]
[361628358,1747650644552,-346.61584979,0.00013698,2]
[361628359,1747650644562,-400.0,0.00013698,2]
[361628360,1747650644571,-665.13,0.00013698,2]
[361628361,1747650644580,-300.0,0.00013698,2]
[361628362,1747650644589,-380.0,0.00013698,2]
[361628363,1747650644598,-580.22,0.00013698,2]
[361628364,1747650644607,-420.0,0.00013698,2]
[361628365,1747650644616,-420.0,0.00013698,2]
[361628366,1747650644626,-400.0,0.00013698,2]
[361628367,1747650644635,-420.0,0.00013698,2]
[361628368,1747650644644,-780.16,0.00013698,2]
[361628369,1747650644654,-813.27,0.00013698,2]
[361628370,1747650644663,-420.0,0.00013698,2]
[361628371,1747650644673,-420.0,0.00013698,2]
[361628372,1747650644682,-420.0,0.00013698,2]
[361628373,1747650644692,-400.0,0.00013698,2]
[361628374,1747650644702,-420.0,0.00013698,2]
[361628375,1747650644711,-420.0,0.00013698,2]
[361628376,1747650644720,-420.0,0.00013698,2]
[361628377,1747650644729,-420.0,0.00013698,2]
[361628378,1747650644738,-420.0,0.00013698,2]
[361628379,1747650644747,-420.0,0.00013698,2]
[361628380,1747650644757,-622.77,0.00013698,2]
[361628381,1747650644767,-420.0,0.00013698,2]
[361628382,1747650644776,-474.18,0.00013698,2]
[361628383,1747650644786,-420.0,0.00013698,2]
[361628384,1747650644795,-803.450648,0.00013698,2]
[361628385,1747650644805,-803.450648,0.00013698,2]
[361628386,1747650644814,-560.32,0.00013698,2]
[361628387,1747650644823,-555.53,0.00013698,2]
[361628388,1747650644832,-420.0,0.00013698,2]
[361628389,1747650644841,-1010.59104096,0.00013698,2]
[361628390,1747650644850,-420.0,0.00013698,2]
[361628391,1747650644860,-598.0,0.00013698,2]
[361628392,1747650644870,-528.09,0.00013698,2]
[361628393,1747650644879,-420.0,0.00013698,2]
[361628394,1747650644889,-151.0,0.00013698,2]
[361628395,1747650644898,-420.0,0.00013698,2]
[361628396,1747650644908,-151.0,0.00013698,2]
[361628397,1747650644917,-400.0,0.00013698,2]
[361628398,1747650644927,-510.44,0.00013698,2]
[361628399,1747650644936,-420.0,0.00013698,2]
[361628400,1747650644946,-420.0,0.00013698,2]
[361628401,1747650644955,-788.03,0.00013698,2]
[361628402,1747650644964,-420.0,0.00013698,2]
[361628403,1747650644973,-420.0,0.00013698,2]
[361628404,1747650644982,-420.0,0.00013698,2]
[361628405,1747650644992,-350.0,0.00013698,2]
[361628406,1747650645003,-420.0,0.00013698,2]
[361628407,1747650645011,-933.92,0.00013698,2]
[361628408,1747650645021,-1617.69,0.00013698,2]
[361628409,1747650645030,-579.49,0.00013698,2]
[361628410,1747650645040,-420.0,0.00013698,2]
[361628411,1747650645049,-453.96,0.00013698,2]
[361628412,1747650645058,-402.11715253,0.00013698,2]
[361628413,1747650645068,-420.0,0.00013698,2]
[361628414,1747650645079,-420.0,0.00013698,2]
[361628415,1747650645088,-420.0,0.00013698,2]
[361628416,1747650645098,-987.46,0.00013698,2]
[361628417,1747650645109,-263.14069619,0.00013698,2]
[361628418,1747650645118,-420.0,0.00013698,2]
[361628419,1747650645127,-420.0,0.00013698,2]
[361628420,1747650645136,-554.27,0.00013698,2]
[361628421,1747650645145,-400.0,0.00013698,2]
[361628422,1747650645154,-546.64296717,0.00013698,2]
[361628423,1747650645163,-420.0,0.00013698,2]
[361628424,1747650645172,-420.0,0.00013698,2]
[361628425,1747650645182,-420.0,0.00013698,2]
[361628426,1747650645191,-420.0,0.00013698,2]
[361628427,1747650645202,-420.0,0.00013698,2]
[361628428,1747650645214,-856.92,0.00013698,2]
[361628429,1747650645224,-420.0,0.00013698,2]
[361628430,1747650645235,-529.85,0.00013698,2]
[361628431,1747650645245,-420.0,0.00013698,2]
[361628432,1747650645255,-470.68,0.00013698,2]
[361628433,1747650645265,-499.1809085,0.00013698,2]
[361628434,1747650645275,-750.61,0.00013698,2]
[361628435,1747650645286,-420.0,0.00013698,2]
[361628436,1747650645296,-420.0,0.00013698,2]
[361628437,1747650645305,-658.76,0.00013698,2]
[361628438,1747650645316,-401.04565846,0.00013698,2]
[361628439,1747650645327,-420.0,0.00013698,2]
[361628440,1747650645337,-1184.89,0.00013698,2]
[361628441,1747650645346,-400.0,0.00013698,2]
[361628442,1747650645357,-151.0,0.00013698,2]
[361628443,1747650645366,-411.10412221,0.00013698,2]
[361628444,1747650645376,-151.0,0.00013698,2]
[361628445,1747650645385,-420.0,0.00013698,2]
[361628446,1747650645395,-400.14891288,0.00013698,2]
[361628447,1747650645405,-211.115358,0.00013698,2]
[361628448,1747650645414,-420.0,0.00013698,2]
[361628449,1747650645423,-945.172895,0.00013698,2]
[361628450,1747650645433,-211.115358,0.00013698,2]
[361628451,1747650645443,-945.172895,0.00013698,2]
[361628452,1747650645453,-423.53,0.00013698,2]
[361628453,1747650645462,-211.115358,0.00013698,2]
[361628454,1747650645471,-945.172895,0.00013698,2]
[361628455,1747650645481,-211.115358,0.00013698,2]
[361628456,1747650645490,-420.0,0.00013698,2]
[361628457,1747650645501,-420.0,0.00013698,2]
[361628458,1747650645510,-945.172895,0.00013698,2]
[361628459,1747650645519,-615.54,0.00013698,2]
[361628460,1747650645528,-669.09,0.00013698,2]
[361628461,1747650645537,-400.0,0.00013698,2]
[361628462,1747650645546,-420.0,0.00013698,2]
[361628463,1747650645555,-420.0,0.00013698,2]
[361628464,1747650645564,-554.43,0.00013698,2]
[361628465,1747650645573,-420.0,0.00013698,2]
[361628466,1747650645582,-420.0,0.00013698,2]
[361628467,1747650645592,-420.0,0.00013698,2]
[361628468,1747650645601,-735.28,0.00013698,2]
[361628469,1747650645610,-468.6,0.00013698,2]
[361628470,1747650645619,-660.17,0.00013698,2]
[361628471,1747650645628,-376.17050034,0.00013698,2]
[361628472,1747650645638,-420.0,0.00013698,2]
[361628473,1747650645647,-550.57,0.00013698,2]
[361628474,1747650645657,-420.0,0.00013698,2]
[361628475,1747650645666,-420.0,0.00013698,2]
[361628476,1747650645675,-420.0,0.00013698,2]
[361628477,1747650645684,-420.0,0.00013698,2]
[361628478,1747650645693,-151.0,0.00013698,2]
[361628479,1747650645702,-420.0,0.00013698,2]
[361628481,1747650645712,-618.7,0.00013698,2]
[361628483,1747650645722,-466.53,0.00013698,2]
[361628485,1747650645731,-448.29785865,0.00013698,2]
[361628487,1747650645740,-420.0,0.00013698,2]
[361628489,1747650645750,-483.78685597,0.00013698,2]
[361628490,1747650645759,-900.3,0.00013698,2]
[361628491,1747650645768,-420.0,0.00013698,2]
[361628492,1747650645777,-380.0,0.00013698,2]
[361628493,1747650645785,-420.0,0.00013698,2]
[361628494,1747650645795,-420.0,0.00013698,2]
[361628495,1747650645804,-420.0,0.00013698,2]
[361628496,1747650645813,-480.34,0.00013698,2]
[361628497,1747650645823,-410.63176689,0.00013698,2]
[361628498,1747650645832,-402.14418664,0.00013698,2]
[361628499,1747650645840,-420.0,0.00013698,2]
[361628500,1747650645850,-401.74571758,0.00013698,2]
[361628501,1747650645859,-360.0,0.00013698,2]
[361628502,1747650645868,-400.0,0.00013698,2]
[361628503,1747650645881,-464.8,0.00013698,2]
[361628504,1747650645891,-420.0,0.00013698,2]
[361628505,1747650645902,-1035.95,0.00013698,2]
[361628506,1747650645912,-151.0,0.00013698,2]
[361628507,1747650645922,-420.0,0.00013698,2]
[361628508,1747650645931,-420.0,0.00013698,2]
[361628509,1747650645942,-420.0,0.00013698,2]
[361628510,1747650645952,-1222.44,0.00013698,2]
[361628511,1747650645963,-440.32,0.00013698,2]
[361628512,1747650645972,-420.0,0.00013698,2]
[361628513,1747650645981,-420.0,0.00013698,2]
[361628514,1747650645991,-407.86250084,0.00013698,2]
[361628515,1747650646004,-621.05,0.00013698,2]
[361628516,1747650646014,-494.13,0.00013698,2]
[361628517,1747650646023,-420.0,0.00013698,2]
[361628518,1747650646032,-478.35,0.00013698,2]
[361628519,1747650646042,-400.0,0.00013698,2]
[361628520,1747650646052,-420.0,0.00013698,2]
[361628521,1747650646062,-623.82,0.00013698,2]
[361628522,1747650646073,-420.0,0.00013698,2]
[361628523,1747650646082,-487.91,0.00013698,2]
[361628524,1747650646093,-420.0,0.00013698,2]
[361628525,1747650646103,-420.0,0.00013698,2]
[361628526,1747650646112,-420.0,0.00013698,2]
[361628527,1747650646122,-420.0,0.00013698,2]
[361628528,1747650646132,-885.36,0.00013698,2]
[361628529,1747650646141,-420.0,0.00013698,2]
[361628530,1747650646151,-420.0,0.00013698,2]
[361628531,1747650646161,-420.0,0.00013698,2]
[361628532,1747650646171,-420.0,0.00013698,2]
[361628533,1747650646180,-420.0,0.00013698,2]
[361628534,1747650646189,-400.0,0.00013698,2]
[361628535,1747650646198,-420.0,0.00013698,2]
[361628536,1747650646207,-488.52,0.00013698,2]
[361628537,1747650646216,-420.0,0.00013698,2]
[361628538,1747650646225,-926.37,0.00013698,2]
[361628539,1747650646234,-420.0,0.00013698,2]
[361628540,1747650646243,-844.66,0.00013698,2]
[361628541,1747650646251,-1728.12,0.00013698,2]
[361628542,1747650646261,-420.0,0.00013698,2]
[361628543,1747650646269,-420.0,0.00013698,2]
[361628544,1747650646279,-420.0,0.00013698,2]
[361628545,1747650646288,-420.0,0.00013698,2]
[361628546,1747650646297,-401.61153516,0.00013698,2]
[361628547,1747650646306,-780.58,0.00013698,2]
[361628548,1747650646316,-420.0,0.00013698,2]
[361628549,1747650646324,-420.0,0.00013698,2]
[361628550,1747650646334,-432.83,0.00013698,2]
[361628551,1747650646343,-420.0,0.00013698,2]
[361628553,1747650646352,-420.0,0.00013698,2]
[361628555,1747650646362,-420.0,0.00013698,2]
[361628556,1747650646371,-1108.92,0.00013698,2]
[361628557,1747650646381,-420.0,0.00013698,2]
[361628558,1747650646390,-420.0,0.00013698,2]
[361628559,1747650646399,-462.47,0.00013698,2]
[361628560,1747650646408,-420.0,0.00013698,2]
[361628561,1747650646417,-563.65,0.00013698,2]
[361628562,1747650646426,-442.11,0.00013698,2]
[361628563,1747650646435,-420.0,0.00013698,2]
[361628564,1747650646444,-420.0,0.00013698,2]
[361628565,1747650646454,-420.0,0.00013698,2]
[361628566,1747650646463,-420.0,0.00013698,2]
[361628567,1747650646472,-420.0,0.00013698,2]
[361628568,1747650646482,-420.0,0.00013698,2]
[361628569,1747650646492,-544.01,0.00013698,2]
[361628570,1747650646501,-420.0,0.00013698,2]
[361628572,1747650646510,-701.86,0.00013698,2]
[361628573,1747650646519,-420.0,0.00013698,2]
[361628574,1747650646529,-420.0,0.00013698,2]
[361628575,1747650646538,-420.0,0.00013698,2]
[361628576,1747650646547,-862.11,0.00013698,2]
[361628577,1747650646556,-795.05,0.00013698,2]
[361628578,1747650646565,-543.46590694,0.00013698,2]
[361628579,1747650646575,-420.0,0.00013698,2]
[361628580,1747650646584,-427.02,0.00013698,2]
[361628581,1747650646593,-806.24,0.00013698,2]
[361628582,1747650646602,-877.43,0.00013698,2]
[361628583,1747650646611,-400.0,0.00013698,2]
[361628584,1747650646621,-420.0,0.00013698,2]
[361628585,1747650646630,-420.0,0.00013698,2]
[361628586,1747650646639,-420.0,0.00013698,2]
[361628587,1747650646648,-555.03,0.00013698,2]
[361628588,1747650646657,-1162.45,0.00013698,2]
[361628589,1747650646666,-420.0,0.00013698,2]
[361628590,1747650646675,-420.0,0.00013698,2]
[361628591,1747650646685,-420.0,0.00013698,2]
[361628592,1747650646694,-420.0,0.00013698,2]
[361628593,1747650646703,-420.0,0.00013698,2]
[361628594,1747650646712,-202.46276,0.00013698,2]
[361628595,1747650646721,-650.19,0.00013698,2]
[361628596,1747650646731,-400.81584776,0.00013698,2]
[361628597,1747650646739,-565.3,0.00013698,2]
[361628598,1747650646749,-420.0,0.00013698,2]
[361628599,1747650646758,-484.99,0.00013698,2]
[361628600,1747650646767,-420.0,0.00013698,2]
[361628601,1747650646776,-420.0,0.00013698,2]
[361628602,1747650646785,-611.9,0.00013698,2]
[361628603,1747650646794,-504.81,0.00013698,2]
[361628604,1747650646803,-504.81,0.00013698,2]
[361628605,1747650646812,-420.0,0.00013698,2]
[361628606,1747650646821,-151.0,0.00013698,2]
[361628607,1747650646830,-151.0,0.00013698,2]
[361628608,1747650646839,-420.0,0.00013698,2]
[361628609,1747650646849,-709.09,0.00013698,2]
[361628610,1747650646858,-420.0,0.00013698,2]
[361628611,1747650646867,-420.0,0.00013698,2]
[361628612,1747650646876,-420.0,0.00013698,2]
[361628613,1747650646885,-151.380315,0.00013698,2]
[361628614,1747650646894,-151.0,0.00013698,2]
[361628615,1747650646903,-151.0,0.00013698,2]
[361628616,1747650646911,-420.0,0.00013698,2]
[361628617,1747650646921,-655.62,0.00013698,2]
[361628618,1747650646930,-420.0,0.00013698,2]
[361628619,1747650646939,-420.0,0.00013698,2]
[361628620,1747650646948,-420.0,0.00013698,2]
[361628621,1747650646957,-420.0,0.00013698,2]
[361628622,1747650646966,-493.2,0.00013698,2]
[361628623,1747650646976,-420.0,0.00013698,2]
[361628624,1747650646986,-767.22,0.00013698,2]
[361628625,1747650646996,-420.0,0.00013698,2]
[361628626,1747650647008,-420.0,0.00013698,2]
[361628627,1747650647018,-732.91,0.00013698,2]
[361628628,1747650647027,-380.0,0.00013698,2]
[361628629,1747650647036,-400.0,0.00013698,2]
[361628630,1747650647046,-420.0,0.00013698,2]
[361628631,1747650647055,-443.91,0.00013698,2]
[361628632,1747650647064,-420.0,0.00013698,2]
[361628633,1747650647074,-336.285203,0.00013698,2]
[361628634,1747650647085,-336.285203,0.00013698,2]
[361628635,1747650647094,-420.0,0.00013698,2]
[361628636,1747650647103,-420.0,0.00013698,2]
[361628637,1747650647113,-634.56,0.00013698,2]
[361628638,1747650647122,-336.285203,0.00013698,2]
[361628639,1747650647131,-187.02056026,0.00013698,2]
[361628640,1747650647140,-336.285203,0.00013698,2]
[361628641,1747650647149,-595.7,0.00013698,2]
[361628642,1747650647158,-420.0,0.00013698,2]
[361628643,1747650647167,-524.83809563,0.00013698,2]
[361628644,1747650647176,-420.0,0.00013698,2]
[361628645,1747650647185,-567.22,0.00013698,2]
[361628646,1747650647194,-887.56,0.00013698,2]
[361628647,1747650647203,-420.0,0.00013698,2]
[361628648,1747650647212,-360.0,0.00013698,2]
[361628649,1747650647221,-151.0,0.00013698,2]
[361628650,1747650647230,-775.54,0.00013698,2]
[361628651,1747650647239,-575.05,0.00013698,2]
[361628652,1747650647248,-420.0,0.00013698,2]
[361628653,1747650647257,-400.0,0.00013698,2]
[361628654,1747650647267,-584.85,0.00013698,2]
[361628655,1747650647276,-400.0,0.00013698,2]
[361628656,1747650647285,-420.0,0.00013698,2]
[361628657,1747650647294,-151.0,0.00013698,2]
[361628658,1747650647303,-420.0,0.00013698,2]
[361628659,1747650647312,-518.18,0.00013698,2]
[361628660,1747650647321,-340.52559,0.00013698,2]
[361628661,1747650647331,-340.52559,0.00013698,2]
[361628662,1747650647340,-420.0,0.00013698,2]
[361628663,1747650647349,-420.0,0.00013698,2]
[361628664,1747650647358,-636.42,0.00013698,2]
[361628665,1747650647367,-380.0,0.00013698,2]
[361628666,1747650647376,-420.0,0.00013698,2]
[361628667,1747650647385,-340.52559,0.00013698,2]
[361628668,1747650647395,-340.52559,0.00013698,2]
[361628669,1747650647404,-400.0,0.00013698,2]
[361628670,1747650647414,-656.88,0.00013698,2]
[361628671,1747650647423,-403.28142654,0.00013698,2]
[361628672,1747650647433,-420.0,0.00013698,2]
[361628673,1747650647442,-488.33182911,0.00013698,2]
[361628674,1747650647451,-470.96,0.00013698,2]
[361628675,1747650647461,-420.0,0.00013698,2]
[361628676,1747650647470,-400.0,0.00013698,2]
[361628677,1747650647479,-420.0,0.00013698,2]
[361628678,1747650647489,-154.226799,0.00013698,2]
[361628679,1747650647498,-302.47264962,0.00013698,2]
[361628680,1747650647507,-420.0,0.00013698,2]
[361628681,1747650647516,-400.0,0.00013698,2]
[361628682,1747650647526,-450.4,0.00013698,2]
[361628683,1747650647535,-420.0,0.00013698,2]
[361628684,1747650647545,-400.0,0.00013698,2]
[361628685,1747650647556,-420.0,0.00013698,2]
[361628686,1747650647567,-463.69,0.00013698,2]
[361628687,1747650647577,-420.0,0.00013698,2]
[361628688,1747650647587,-420.0,0.00013698,2]
[361628689,1747650647598,-420.0,0.00013698,2]
[361628690,1747650647608,-420.0,0.00013698,2]
[361628691,1747650647617,-569.4,0.00013698,2]
[361628692,1747650647627,-824.27,0.00013698,2]
[361628693,1747650647637,-400.0,0.00013698,2]
[361628694,1747650647648,-401.79058086,0.00013698,2]
[361628695,1747650647659,-420.0,0.00013698,2]
[361628696,1747650647670,-948.28,0.00013698,2]
[361628697,1747650647679,-421.09,0.00013698,2]
[361628698,1747650647688,-420.0,0.00013698,2]
[361628699,1747650647698,-420.0,0.00013698,2]
[361628700,1747650647708,-151.0,0.00013698,2]
[361628701,1747650647718,-420.0,0.00013698,2]
[361628702,1747650647728,-381.75,0.00013698,2]
[361628703,1747650647739,-1603.71,0.00013698,2]
[361628704,1747650647749,-557.47,0.00013698,2]
[361628705,1747650647758,-326.72674275,0.00013698,2]
[361628706,1747650647767,-420.0,0.00013698,2]
[361628707,1747650647776,-420.0,0.00013698,2]
[361628708,1747650647786,-420.0,0.00013698,2]
[361628709,1747650648009,-400.0,0.00013698,2]
[361628710,1747650648019,-420.0,0.00013698,2]
[361628711,1747650648030,-1054.06,0.00013698,2]
[361628712,1747650648040,-400.0,0.00013698,2]
[361628713,1747650648050,-882.71,0.00013698,2]
[361628714,1747650648059,-320.0,0.00013698,2]
[361628715,1747650648069,-420.0,0.00013698,2]
[361628716,1747650648080,-657.78,0.00013698,2]
[361628717,1747650648090,-420.0,0.00013698,2]
[361628718,1747650648099,-320.0,0.00013698,2]
[361628719,1747650648108,-407.17600583,0.00013698,2]
[361628720,1747650648118,-500.0,0.00013698,2]
[361628721,1747650648129,-420.0,0.00013698,2]
[361628722,1747650648138,-420.0,0.00013698,2]
[361628723,1747650648148,-420.0,0.00013698,2]
[361628724,1747650648158,-400.35985016,0.00013698,2]
[361628725,1747650648167,-905.73,0.00013698,2]
[361628726,1747650648176,-420.0,0.00013698,2]
[361628727,1747650648185,-420.0,0.00013698,2]
[361628728,1747650648195,-1299.21,0.00013698,2]
[361628729,1747650648205,-403.42169906,0.00013698,2]
[361628730,1747650648214,-661.6,0.00013698,2]
[361628731,1747650648224,-751.48,0.00013698,2]
[361628732,1747650648233,-420.0,0.00013698,2]
[361628733,1747650648242,-400.0,0.00013698,2]
[361628734,1747650648252,-420.0,0.00013698,2]
[361628735,1747650648261,-420.0,0.00013698,2]
[361628736,1747650648270,-6179.3,0.00013698,2]
[361628737,1747650648280,-485.69,0.00013698,2]
[361628738,1747650648290,-1807.59,0.00013698,2]
[361628739,1747650648300,-742.69,0.00013698,2]
[361628740,1747650648310,-151.0,0.00013698,2]
[361628741,1747650648319,-1147.28,0.00013698,2]
[361628742,1747650648329,-151.0,0.00013698,2]
[361628743,1747650648338,-325.62048889,0.00013698,2]
[361628744,1747650648347,-5053.639194,0.00013698,2]
[361628745,1747650648357,-5053.639194,0.00013698,2]
[361628746,1747650648367,-280.0,0.00013698,2]
[361628747,1747650648377,-151.0,0.00013698,2]
[361628748,1747650648387,-202.498406,0.00013698,2]
[361628749,1747650648397,-5053.639194,0.00013698,2]
[361628750,1747650648407,-5053.639194,0.00013698,2]
[361628751,1747650648416,-440.5,0.00013698,2]
[361628752,1747650648427,-420.0,0.00013698,2]
[361628753,1747650648437,-599.64,0.00013698,2]
[361628754,1747650648446,-462.51915197,0.00013698,2]
[361628755,1747650648456,-479.76,0.00013698,2]
[361628756,1747650648466,-420.0,0.00013698,2]
[361628757,1747650648475,-400.0,0.00013698,2]
[361628758,1747650648484,-151.0,0.00013698,2]
[361628759,1747650648494,-3421.59,0.00013698,2]
[361628760,1747650648503,-420.0,0.00013698,2]
[361628761,1747650648513,-400.0,0.00013698,2]
[361628762,1747650648523,-269.113465,0.00013698,2]
[361628763,1747650648532,-420.0,0.00013698,2]
[361628764,1747650648542,-1005.02,0.00013698,2]
[361628765,1747650648551,-420.0,0.00013698,2]
[361628766,1747650648560,-420.0,0.00013698,2]
[361628767,1747650648570,-400.0,0.00013698,2]
[361628768,1747650648579,-420.0,0.00013698,2]
[361628769,1747650648589,-153.528363,0.00013698,2]
[361628770,1747650648599,-6914.49,0.00013698,2]
[361628771,1747650648608,-967.94,0.00013698,2]
[361628772,1747650648617,-3741.85,0.00013698,2]
[361628773,1747650648627,-1015.21,0.00013698,2]
[361628774,1747650648637,-400.0,0.00013698,2]
[361628775,1747650648647,-420.0,0.00013698,2]
[361628776,1747650648656,-938.08,0.00013698,2]
[361628777,1747650648665,-926.27,0.00013698,2]
[361628778,1747650648675,-420.0,0.00013698,2]
[361628779,1747650648684,-2330.33,0.00013698,2]
[361628780,1747650648693,-320.0,0.00013698,2]
[361628781,1747650648703,-420.0,0.00013698,2]
[361628782,1747650648712,-500.0,0.00013698,2]
[361628783,1747650648722,-3534.59,0.00013698,2]
[361628784,1747650648731,-420.0,0.00013698,2]
[361628785,1747650648740,-925.62,0.00013698,2]
[361628786,1747650648750,-431.05390832,0.00013698,2]
[361628787,1747650648759,-420.0,0.00013698,2]
[361628788,1747650648768,-420.0,0.00013698,2]
[361628789,1747650648778,-8173.53,0.00013698,2]
[361628790,1747650648787,-631.25,0.00013698,2]
[361628791,1747650648796,-196.46299033,0.00013698,2]
[361628792,1747650648806,-420.0,0.00013698,2]
[361628793,1747650648815,-12088.06,0.00013698,2]
[361628794,1747650648824,-1271.86,0.00013698,2]
[361628795,1747650648834,-420.0,0.00013698,2]
[361628796,1747650648843,-517.86,0.00013698,2]
[361628797,1747650648852,-2221.26,0.00013698,2]
[361628798,1747650648862,-1022.29,0.00013698,2]
[361628799,1747650648872,-405.79344764,0.00013698,2]
[361628800,1747650648881,-420.0,0.00013698,2]
[361628801,1747650648890,-3713.45,0.00013698,2]
[361628802,1747650648900,-984.85,0.00013698,2]
[361628803,1747650648909,-400.0,0.00013698,2]
[361628804,1747650648918,-420.0,0.00013698,2]
[361628805,1747650648928,-420.0,0.00013698,2]
[361628806,1747650648937,-420.0,0.00013698,2]
[361628807,1747650648946,-668.41,0.00013698,2]
[361628808,1747650648955,-530.52,0.00013698,2]
[361628809,1747650648965,-983.6,0.00013698,2]
[361628810,1747650648974,-420.0,0.00013698,2]
[361628811,1747650648983,-420.0,0.00013698,2]
[361628812,1747650648993,-76857.47,0.00013698,2]
[361628813,1747650649006,-532.26,0.00013698,2]
[361628814,1747650649015,-138590.71,0.00013698,2]
[361628815,1747650649024,-709.29,0.00013698,2]
[361628816,1747650649033,-420.0,0.00013698,2]
[361628817,1747650649042,-280.0,0.00013698,2]
[361628818,1747650649052,-580.32,0.00013698,2]
[361628819,1747650649061,-1579.48,0.00013698,2]
[361628820,1747650649071,-2395.61,0.00013698,2]
[361628821,1747650649082,-2839.95,0.00013698,2]
[361628822,1747650649091,-1179.35,0.00013698,2]
[361628823,1747650649100,-1222.06,0.00013698,2]
[361628824,1747650649110,-602.63,0.00013698,2]
[361628825,1747650649119,-400.0,0.00013698,2]
[361628826,1747650649129,-919.28,0.00013698,2]
[361628827,1747650649138,-420.0,0.00013698,2]
[361628828,1747650649147,-400.0,0.00013698,2]
[361628829,1747650649157,-1008.16,0.00013698,2]
[361628830,1747650649167,-452.8,0.00013698,2]
[361628831,1747650649176,-1098.93,0.00013698,2]
[361628832,1747650649185,-6861.18,0.00013698,2]
[361628833,1747650649194,-696.9,0.00013698,2]
[361628834,1747650649203,-877.53,0.00013698,2]
[361628835,1747650649213,-420.0,0.00013698,2]
[361628836,1747650649222,-420.0,0.00013698,2]
[361628837,1747650649231,-420.0,0.00013698,2]
[361628838,1747650649241,-420.0,0.00013698,2]
[361628839,1747650649250,-500.0,0.00013698,2]
[361628840,1747650649259,-852.51,0.00013698,2]
[361628841,1747650649269,-1653.09,0.00013698,2]
[361628842,1747650649278,-1103.61,0.00013698,2]
[361628843,1747650649287,-400.0,0.00013698,2]
[361628844,1747650649297,-420.0,0.00013698,2]
[361628845,1747650649306,-420.0,0.00013698,2]
[361628846,1747650649316,-796.82,0.00013698,2]
[361628847,1747650649325,-6664.67,0.00013698,2]
[361628848,1747650649334,-151.0,0.00013698,2]
[361628849,1747650649344,-168.382529,0.00013698,2]
[361628850,1747650649354,-664.33,0.00013698,2]
[361628851,1747650649365,-2306.52,0.00013698,2]
[361628852,1747650649375,-911.15,0.00013698,2]
[361628853,1747650649387,-420.0,0.00013698,2]
[361628854,1747650649397,-2619.4,0.00013698,2]
[361628855,1747650649408,-1305.76,0.00013698,2]
[361628856,1747650649418,-176.580819,0.00013698,2]
[361628857,1747650649428,-289.22394018,0.00013698,2]
[361628858,1747650649438,-176.580819,0.00013698,2]
[361628859,1747650649448,-420.0,0.00013698,2]
[361628860,1747650649458,-420.0,0.00013698,2]